bitfinex/quotes_BTCUSD_20240731
["timestamp","ask_amount","ask_price","bid_price","bid_amount"]
[1722385620817,0.0620741,66173.0,66172.0,0.619863]
[1722385621264,0.0620741,66173.0,66172.0,1.0143163]
[1722385621470,0.00083,66173.0,66172.0,1.0143163]
[1722385621887,0.1135571,66173.0,66172.0,1.0143163]
[1722385622519,0.00083,66173.0,66172.0,1.0143163]
[1722385622730,0.1135571,66173.0,66172.0,1.0143163]
[1722385623388,0.11355272,66173.0,66172.0,1.0143163]
[1722385623612,0.11357042,66173.0,66172.0,1.0143163]
[1722385624461,0.00083,66173.0,66172.0,1.0143163]
[1722385624877,0.06275461,66173.0,66172.0,1.0143163]
[1722385625096,0.00083,66173.0,66172.0,1.0143163]
[1722385631340,0.00083,66173.0,66172.0,0.1665]
[1722385631586,0.00083,66173.0,66172.0,0.023]
[1722385631587,0.2135224,66173.0,66172.0,0.023]
[1722385631824,1.03524556,66173.0,66172.0,0.023]
[1722385632302,0.9594255,66173.0,66172.0,0.023]
[1722385632783,0.95942561,66173.0,66172.0,0.023]
[1722385633268,0.65728188,66173.0,66172.0,0.023]
[1722385633509,0.8096488,66173.0,66172.0,0.023]
[1722385634398,0.65728188,66173.0,66172.0,0.023]
[1722385634612,0.8096488,66173.0,66172.0,0.023]
[1722385634828,1.11189055,66173.0,66172.0,0.023]
[1722385635045,0.95951988,66173.0,66172.0,0.023]
[1722385635972,0.95951284,66173.0,66172.0,0.023]
[1722385639078,0.95923847,66173.0,66172.0,0.023]
[1722385642138,1.26147647,66173.0,66172.0,0.023]
[1722385642370,1.4561821,66173.0,66172.0,0.023]
[1722385642597,1.7584201,66173.0,66172.0,0.023]
[1722385642892,1.76841381,66173.0,66172.0,0.023]
[1722385643105,1.75841381,66173.0,66172.0,0.023]
[1722385643539,1.76841381,66173.0,66172.0,0.011]
[1722385643788,1.75841381,66173.0,66172.0,0.011]
[1722385643997,1.99057448,66173.0,66172.0,0.011]
[1722385644211,1.76841381,66173.0,66172.0,0.011]
[1722385644430,0.45348,66155.0,66151.0,0.000913]
[1722385644635,0.5142436,66155.0,66151.0,0.000913]
[1722385644842,0.2119236,66155.0,66151.0,0.000913]
[1722385645491,0.21202362,66155.0,66151.0,0.000913]
[1722385645700,0.21202362,66155.0,66154.0,0.014913]
[1722385646764,0.51434362,66155.0,66154.0,0.028913]
[1722385648643,0.64957897,66155.0,66154.0,0.028913]
[1722385648857,0.51436647,66155.0,66154.0,0.028913]
[1722385649077,1.11900647,66155.0,66154.0,0.028913]
[1722385651424,0.81668647,66155.0,66154.0,0.028913]
[1722385651875,0.7558,66155.0,66154.0,0.028913]
[1722385652029,0.8169819,66155.0,66154.0,0.028913]
[1722385652193,0.7558,66155.0,66154.0,0.028913]
[1722385652388,0.816983,66155.0,66154.0,0.028913]
[1722385655018,0.7558,66155.0,66154.0,0.028913]
[1722385655235,0.81679053,66155.0,66154.0,0.028913]
[1722385658384,0.81679094,66155.0,66154.0,0.028913]
[1722385659438,0.81762094,66155.0,66154.0,0.028913]
[1722385659621,0.8176972,66155.0,66154.0,0.028913]
[1722385660041,0.8173542,66155.0,66154.0,0.028913]
[1722385661692,0.756287,66155.0,66154.0,0.028913]
[1722385661897,0.81726483,66155.0,66154.0,0.028913]
[1722385662314,0.81719553,66155.0,66154.0,0.028913]
[1722385664055,0.81723552,66155.0,66154.0,0.028913]
[1722385665082,0.81723525,66155.0,66154.0,0.028913]
[1722385668271,0.756287,66155.0,66154.0,0.028913]
[1722385668487,0.81735045,66155.0,66154.0,0.028913]
[1722385671637,0.756287,66155.0,66154.0,0.028913]
[1722385671858,0.81712337,66155.0,66154.0,0.028913]
[1722385672083,0.756287,66155.0,66154.0,0.028913]
[1722385672303,0.8166371,66155.0,66154.0,0.028913]
[1722385672514,1.48744529,66155.0,66154.0,0.028913]
[1722385672736,1.44681884,66155.0,66154.0,0.028913]
[1722385673428,1.44681884,66155.0,66154.0,0.014913]
[1722385673861,1.44664574,66155.0,66154.0,0.023913]
[1722385674080,1.35954574,66155.0,66154.0,0.023913]
[1722385674283,1.05722574,66155.0,66154.0,0.009913]
[1722385674643,1.35954574,66155.0,66154.0,0.009913]
[1722385674865,1.205007,66155.0,66154.0,0.009913]
[1722385675067,1.35964049,66155.0,66154.0,0.009913]
[1722385675507,1.35964049,66155.0,66154.0,0.018913]
[1722385675722,1.51151802,66155.0,66154.0,0.018913]
[1722385676132,1.35964049,66155.0,66154.0,0.018913]
[1722385676586,1.44674049,66155.0,66154.0,0.018913]
[1722385677279,1.54674049,66155.0,66154.0,0.018913]
[1722385677483,1.85906049,66155.0,66154.0,0.018913]
[1722385678525,1.85906049,66155.0,66154.0,0.009913]
[1722385679350,1.85906049,66155.0,66151.0,0.000913]
[1722385679351,1.514303,66152.0,66151.0,0.000913]
[1722385679566,3.01023649,66152.0,66151.0,0.000913]
[1722385679790,3.11023649,66152.0,66151.0,0.000913]
[1722385680242,3.11023649,66152.0,66132.0,0.1416]
[1722385680243,0.75605,66133.0,66132.0,0.1416]
[1722385680453,0.75605,66133.0,66132.0,0.0641]
[1722385680454,0.8163648,66133.0,66132.0,0.0641]
[1722385680568,0.5139448,66133.0,66132.0,0.0641]
[1722385680985,0.51366652,66133.0,66132.0,0.0641]
[1722385681395,0.51412348,66133.0,66132.0,0.0641]
[1722385681603,0.51412348,66133.0,66132.0,0.0781]
[1722385682009,0.51412348,66133.0,66132.0,0.0921]
[1722385682214,0.06049348,66133.0,66132.0,0.562825]
[1722385682422,0.1,66144.0,66134.0,0.302416]
[1722385682423,0.09001524,66135.0,66134.0,0.302416]
[1722385682622,0.4688,66145.0,66135.0,0.302411]
[1722385682623,0.09001524,66138.0,66135.0,0.302411]
[1722385682831,0.11249552,66140.0,66138.0,0.1389]
[1722385682832,0.09002153,66140.0,66138.0,0.1389]
[1722385683048,0.09002153,66140.0,66139.0,0.290094]
[1722385683252,0.09002153,66140.0,66139.0,0.592487]
[1722385683464,0.4688,66145.0,66140.0,0.290093]
[1722385683465,0.151183,66145.0,66140.0,0.290093]
[1722385683676,0.09003757,66141.0,66140.0,0.529481]
[1722385683881,0.11254697,66143.0,66141.0,0.453576]
[1722385683882,0.06753294,66143.0,66141.0,0.453576]
[1722385684112,0.06753294,66143.0,66140.0,0.38587827]
[1722385684113,0.06753294,66143.0,66142.0,0.301589]
[1722385684334,1.2542,66148.0,66143.0,0.151187]
[1722385684335,0.06753294,66144.0,66143.0,0.151187]
[1722385684548,0.06753294,66144.0,66143.0,0.604062]
[1722385684742,0.06753294,66144.0,66143.0,0.906437]
[1722385684940,0.06853294,66145.0,66144.0,0.819325]
[1722385685150,0.001,66145.0,66144.0,0.819325]
[1722385685559,0.06853294,66145.0,66144.0,0.819325]
[1722385685791,0.06853294,66145.0,66144.0,0.96309937]
[1722385686417,0.001,66145.0,66144.0,0.96309937]
[1722385686632,1.2542,66148.0,66144.0,0.96309937]
[1722385686633,0.09011471,66146.0,66145.0,0.816415]
[1722385686856,0.09011471,66146.0,66145.0,0.899215]
[1722385687060,0.09011471,66146.0,66145.0,1.02528394]
[1722385687473,0.11264339,66147.0,66146.0,0.755902]
[1722385687676,0.11264339,66147.0,66146.0,0.899202]
[1722385687892,0.11264339,66147.0,66146.0,1.04989632]
[1722385688119,0.11264339,66147.0,66146.0,0.596841]
[1722385688330,0.11264339,66147.0,66146.0,0.1433]
[1722385688598,0.11264339,66147.0,66146.0,0.0605]
[1722385688807,0.151176,66148.0,66146.0,0.0605]
[1722385689190,0.151174,66149.0,66147.0,0.0015542]
[1722385689390,0.06150531,66148.0,66147.0,0.0015542]
[1722385689623,0.06150396,66148.0,66147.0,0.0015542]
[1722385690042,0.151173,66150.0,66147.0,0.0015542]
[1722385690246,0.34791063,66149.0,66146.0,0.0745]
[1722385690451,0.06150509,66148.0,66147.0,0.0155542]
[1722385690658,0.06150509,66148.0,66147.0,0.014]
[1722385690873,0.06150509,66148.0,66147.0,0.028]
[1722385691124,0.21268109,66148.0,66147.0,0.028]
[1722385691867,0.51503309,66148.0,66147.0,0.028]
[1722385692162,0.51503309,66148.0,66147.0,0.014]
[1722385692376,0.51503309,66148.0,66147.0,0.028]
[1722385692377,0.89738509,66148.0,66147.0,0.028]
[1722385692767,1.19973709,66148.0,66147.0,0.028]
[1722385693210,1.35187446,66148.0,66147.0,0.028]
[1722385693673,0.51503309,66148.0,66147.0,0.028]
[1722385694995,0.66717046,66148.0,66147.0,0.028]
[1722385695207,0.81738509,66148.0,66147.0,0.00428]
[1722385695409,0.51503309,66148.0,66147.0,0.00428]
[1722385696092,0.453528,66148.0,66147.0,0.00428]
[1722385696300,0.51563635,66148.0,66147.0,0.00428]
[1722385696727,0.06210835,66148.0,66147.0,0.14438]
[1722385696929,0.06210835,66148.0,66147.0,0.295558]
[1722385697143,0.00083,66151.0,66147.0,0.295558]
[1722385697370,0.00083,66151.0,66148.0,0.0015542]
[1722385697371,0.06186752,66150.0,66148.0,0.0015542]
[1722385697505,0.06186752,66150.0,66148.0,0.1527302]
[1722385697707,0.06186752,66150.0,66149.0,0.45352]
[1722385697911,0.00083,66151.0,66150.0,0.453514]
[1722385698504,0.00183,66151.0,66150.0,0.453514]
[1722385698721,0.00183,66151.0,66150.0,0.4550682]
[1722385698951,0.00083,66151.0,66150.0,0.4550682]
[1722385699156,0.00083,66151.0,66150.0,0.453514]
[1722385699507,0.06469836,66151.0,66150.0,0.463514]
[1722385699655,0.06469836,66151.0,66150.0,0.4550682]
[1722385699656,0.06469915,66151.0,66150.0,0.4550682]
[1722385699861,0.00383,66151.0,66150.0,0.4650682]
[1722385700319,0.00383,66151.0,66150.0,0.7674112]
[1722385700528,0.00283,66151.0,66150.0,0.765857]
[1722385700737,0.00283,66151.0,66150.0,0.161171]
[1722385700945,0.06486881,66151.0,66150.0,0.1627252]
[1722385701359,0.06480014,66151.0,66150.0,0.1627252]
[1722385701771,0.21596914,66151.0,66150.0,0.0115542]
[1722385701982,0.82164514,66151.0,66150.0,0.0185542]
[1722385702191,0.82164514,66151.0,66150.0,0.017]
[1722385702192,0.96514514,66151.0,66150.0,0.017]
[1722385702421,0.96519935,66151.0,66150.0,0.017]
[1722385702864,1.26753735,66151.0,66150.0,0.017]
[1722385704776,1.26653735,66151.0,66150.0,0.01]
[1722385705066,0.151186,66144.0,66142.0,9.9e-05]
[1722385705268,0.58874616,66144.0,66143.0,0.0015542]
[1722385705491,0.58874687,66144.0,66143.0,0.0015542]
[1722385705708,0.58874687,66144.0,66142.0,9.9e-05]
[1722385705709,0.151187,66143.0,66142.0,9.9e-05]
[1722385706019,0.81793155,66143.0,66142.0,9.9e-05]
[1722385706171,0.51555655,66143.0,66142.0,0.020099]
[1722385706556,0.51555655,66143.0,66142.0,0.006099]
[1722385706762,0.51655655,66143.0,66142.0,0.014099]
[1722385707167,0.21418155,66143.0,66142.0,0.014099]
[1722385707388,0.81893155,66143.0,66142.0,0.014099]
[1722385707595,0.51655655,66143.0,66142.0,0.014099]
[1722385708018,0.51755655,66143.0,66142.0,0.020099]
[1722385708712,0.455562,66143.0,66142.0,0.020099]
[1722385708855,0.5170705,66143.0,66142.0,0.020099]
[1722385709063,0.8194455,66143.0,66142.0,0.020099]
[1722385709269,0.51707028,66143.0,66142.0,0.020099]
[1722385710823,0.81944528,66143.0,66142.0,0.020099]
[1722385711238,1.12182028,66143.0,66142.0,0.020099]
[1722385711475,0.96674528,66143.0,66142.0,0.020099]
[1722385711649,1.11881757,66143.0,66142.0,0.020099]
[1722385712006,1.42111853,66143.0,66142.0,0.020099]
[1722385712211,1.11874353,66143.0,66142.0,0.02]
[1722385712912,1.42111853,66143.0,66142.0,0.02]
[1722385713117,1.269054,66143.0,66142.0,0.02]
[1722385713324,1.3643595,66143.0,66142.0,0.02]
[1722385714116,1.3633595,66143.0,66142.0,0.014]
[1722385714323,1.3633595,66143.0,66142.0,0.016]
[1722385714744,1.7657345,66143.0,66142.0,0.016]
[1722385714979,1.618987,66143.0,66142.0,0.016]
[1722385715185,1.618987,66143.0,66142.0,0.002]
[1722385715186,1.77401787,66143.0,66142.0,0.002]
[1722385715632,1.05847,66133.0,66132.0,0.000913]
[1722385715787,1.26361465,66133.0,66132.0,0.000913]
[1722385717736,1.26461465,66133.0,66132.0,0.006913]
[1722385718147,1.20357,66133.0,66132.0,0.006913]
[1722385718473,1.26561107,66133.0,66132.0,0.013913]
[1722385718741,1.35640936,66133.0,66132.0,0.013913]
[1722385718963,1.26571112,66133.0,66132.0,0.013913]
[1722385719164,1.41753104,66133.0,66132.0,0.013913]
[1722385719732,1.4173322,66133.0,66132.0,0.013913]
[1722385720259,1.20457,66133.0,66132.0,0.013913]
[1722385720462,1.26551653,66133.0,66132.0,0.013913]
[1722385720661,1.26540774,66133.0,66132.0,0.013913]
[1722385721022,1.41719517,66133.0,66132.0,0.013913]
[1722385721472,1.35635743,66133.0,66132.0,0.013913]
[1722385721667,0.81863345,66133.0,66132.0,0.079713]
[1722385722908,0.21379345,66133.0,66132.0,0.079713]
[1722385723105,0.06258345,66133.0,66132.0,0.161613]
[1722385723320,0.21379345,66133.0,66132.0,0.161613]
[1722385724415,0.06258345,66133.0,66132.0,0.161613]
[1722385724791,0.06261385,66133.0,66132.0,0.161613]
[1722385725034,0.21382385,66133.0,66132.0,0.161613]
[1722385726460,0.06261385,66133.0,66132.0,0.161613]
[1722385726918,0.21382385,66133.0,66132.0,0.161613]
[1722385727165,0.06261385,66133.0,66132.0,0.161613]
[1722385727820,0.002,66133.0,66132.0,0.161613]
[1722385728231,0.002,66133.0,66132.0,0.312825]
[1722385728440,0.002,66133.0,66132.0,0.161613]
[1722385729309,0.11438838,66133.0,66132.0,0.161613]
[1722385729759,0.11438838,66133.0,66132.0,0.154613]
[1722385729760,0.11338838,66133.0,66132.0,0.154613]
[1722385729955,0.11338838,66133.0,66132.0,0.162613]
[1722385730150,0.11438838,66133.0,66132.0,0.173613]
[1722385730359,0.17530174,66133.0,66132.0,0.173613]
[1722385730600,0.11438838,66133.0,66132.0,0.173613]
[1722385731030,0.002,66133.0,66132.0,0.324825]
[1722385731240,0.002,66133.0,66132.0,0.62725]
[1722385731458,0.002,66133.0,66132.0,0.929675]
[1722385731459,0.06943686,66133.0,66132.0,0.929675]
[1722385731857,0.002,66133.0,66132.0,0.929675]
[1722385732077,0.002,66133.0,66132.0,0.324825]
[1722385732279,0.09191582,66133.0,66132.0,0.173613]
[1722385732484,0.09191582,66133.0,66132.0,0.324825]
[1722385732485,0.002,66133.0,66132.0,0.324825]
[1722385732690,0.17515402,66133.0,66132.0,0.173613]
[1722385732891,0.06276564,66133.0,66132.0,0.173613]
[1722385734387,0.002,66133.0,66132.0,0.173613]
[1722385734591,0.17535501,66133.0,66132.0,0.173613]
[1722385734793,0.06294179,66133.0,66132.0,0.173613]
[1722385735014,0.17535767,66133.0,66132.0,0.173613]
[1722385735221,0.06294179,66133.0,66132.0,0.173613]
[1722385735521,0.17536414,66133.0,66132.0,0.173613]
[1722385735913,0.06294179,66133.0,66132.0,0.173613]
[1722385736686,0.21415179,66133.0,66132.0,0.173613]
[1722385736890,0.06294179,66133.0,66132.0,0.173613]
[1722385737698,0.06337162,66133.0,66132.0,0.173613]
[1722385738574,0.06337223,66133.0,66132.0,0.173613]
[1722385739201,0.17581759,66133.0,66132.0,0.324825]
[1722385739403,0.17581984,66133.0,66132.0,0.324825]
[1722385740325,0.17581984,66133.0,66132.0,0.62725]
[1722385740536,0.06337223,66133.0,66132.0,1.016775]
[1722385740747,0.002,66133.0,66132.0,1.016775]
[1722385740956,0.06946422,66133.0,66132.0,1.016775]
[1722385742887,0.002,66133.0,66132.0,1.016775]
[1722385743733,0.04698167,66133.0,66132.0,1.016775]
[1722385744014,0.002,66133.0,66132.0,1.016775]
[1722385744239,0.06947312,66133.0,66132.0,0.324825]
[1722385744446,0.09082477,66133.0,66132.0,0.025913]
[1722385746296,0.21484552,66133.0,66132.0,0.025913]
[1722385746504,0.65876552,66133.0,66132.0,0.025913]
[1722385746716,0.79372072,66133.0,66132.0,0.025913]
[1722385747146,0.65810777,66133.0,66132.0,0.025913]
[1722385747976,0.15321,66133.0,66132.0,0.025913]
[1722385748166,0.34935363,66133.0,66132.0,0.086313]
[1722385748300,0.21429677,66133.0,66132.0,0.086313]
[1722385748511,0.21429787,66133.0,66132.0,0.086313]
[1722385748719,0.21429783,66133.0,66132.0,0.025913]
[1722385749818,0.002,66133.0,66132.0,0.025913]
[1722385750021,0.19848806,66133.0,66132.0,0.085913]
[1722385750222,0.06340672,66133.0,66132.0,0.085913]
[1722385750431,0.06340672,66133.0,66132.0,0.934505]
[1722385750641,0.11459027,66133.0,66132.0,1.230805]
[1722385750847,0.002,66133.0,66132.0,1.53323]
[1722385751061,0.0470397,66133.0,66132.0,1.53323]
[1722385751261,0.002,66133.0,66132.0,1.53323]
[1722385754982,0.002,66133.0,66132.0,1.868655]
[1722385755402,0.002,66133.0,66132.0,1.870655]
[1722385755815,0.001,66133.0,66132.0,2.03028804]
[1722385756220,0.001,66133.0,66132.0,2.02728804]
[1722385756446,0.001,66133.0,66132.0,2.32971304]
[1722385756648,0.04503377,66146.0,66144.0,0.0624]
[1722385756857,0.00083,66147.0,66146.0,0.453541]
[1722385757058,0.04585373,66147.0,66146.0,1.1737271]
[1722385757696,0.00083,66147.0,66146.0,1.1737271]
[1722385758916,0.00083,66147.0,66146.0,1.1877271]
[1722385759126,0.00083,66147.0,66146.0,1.2651271]
[1722385759328,0.00083,66147.0,66146.0,1.7952881]
[1722385759948,0.00083,66147.0,66146.0,1.7852881]
[1722385760315,0.00083,66147.0,66146.0,1.7952881]
[1722385760993,0.00083,66147.0,66146.0,1.8092881]
[1722385761604,0.00083,66147.0,66146.0,1.7992881]
[1722385761814,0.00083,66147.0,66146.0,1.8092881]
[1722385762018,0.00083,66147.0,66146.0,1.8112881]
[1722385762846,0.00083,66147.0,66146.0,1.7992881]
[1722385763452,0.00083,66147.0,66146.0,1.2791271]
[1722385764689,0.00083,66147.0,66146.0,1.226063]
[1722385765567,0.00083,66147.0,66146.0,0.923702]
[1722385769083,0.00083,66147.0,66146.0,0.846302]
[1722385773493,0.00083,66147.0,66146.0,1.148663]
[1722385773699,0.00083,66147.0,66146.0,1.226063]
[1722385774080,0.00083,66147.0,66146.0,1.35740402]
[1722385774198,0.00083,66147.0,66146.0,1.58520402]
[1722385774432,0.00083,66147.0,66146.0,1.57520402]
[1722385776069,0.00083,66147.0,66146.0,1.35740402]
[1722385776495,0.00083,66147.0,66146.0,0.481541]
[1722385777318,0.00083,66147.0,66146.0,0.568641]
[1722385779291,0.00083,66147.0,66146.0,0.481541]
[1722385781353,0.00083,66147.0,66146.0,0.783902]
[1722385781599,0.00083,66147.0,66146.0,0.481541]
[1722385781801,0.00083,66147.0,66146.0,0.8763435]
[1722385782203,0.00083,66147.0,66146.0,0.5739825]
[1722385782738,0.00083,66147.0,66146.0,0.5755367]
[1722385783323,0.00083,66147.0,66146.0,0.8763435]
[1722385784320,0.00083,66147.0,66146.0,1.0203435]
[1722385786212,0.00083,66147.0,66146.0,0.481541]
[1722385786837,0.00083,66147.0,66146.0,0.783902]
[1722385787879,0.00083,66147.0,66146.0,0.481541]
[1722385788082,0.00083,66147.0,66146.0,0.180093]
[1722385788712,0.00083,66147.0,66146.0,0.482454]
[1722385788951,0.00083,66147.0,66146.0,0.784815]
[1722385789591,0.00083,66147.0,66146.0,0.8698065]
[1722385789798,0.00083,66147.0,66146.0,0.9512065]
[1722385794272,0.00083,66147.0,66146.0,1.2535675]
[1722385794483,0.00083,66147.0,66146.0,1.3137675]
[1722385794758,0.00083,66147.0,66146.0,1.92742871]
[1722385795394,0.00083,66147.0,66146.0,1.92742026]
[1722385795601,0.00083,66147.0,66146.0,1.91342026]
[1722385795810,0.00083,66147.0,66146.0,1.77376154]
[1722385796027,0.00083,66147.0,66146.0,1.92742028]
[1722385796446,0.00083,66147.0,66146.0,1.89942028]
[1722385796947,0.00083,66147.0,66146.0,1.90142028]
[1722385797352,0.00083,66147.0,66146.0,1.91542069]
[1722385797558,0.00083,66147.0,66146.0,1.91542032]
[1722385798171,0.00083,66147.0,66146.0,1.78976154]
[1722385799186,0.00083,66147.0,66146.0,1.87676154]
[1722385803655,0.00083,66147.0,66146.0,1.90876154]
[1722385803850,0.00083,66147.0,66146.0,2.03442086]
[1722385804088,0.00083,66147.0,66146.0,2.0344199]
[1722385804294,0.00083,66147.0,66146.0,1.90876154]
[1722385804510,0.00083,66147.0,66146.0,2.03441839]
[1722385804964,0.00083,66147.0,66146.0,1.61305739]
[1722385805184,0.00083,66147.0,66146.0,0.871815]
[1722385805385,0.06846547,66147.0,66146.0,0.871815]
[1722385805791,0.00083,66147.0,66146.0,1.174176]
[1722385806632,0.09101063,66147.0,66146.0,1.174176]
[1722385806838,0.09101063,66147.0,66146.0,1.2915936]
[1722385806839,0.00083,66147.0,66146.0,1.2915936]
[1722385807048,0.04591418,66147.0,66146.0,1.4315936]
[1722385807255,0.04591418,66147.0,66146.0,1.74582664]
[1722385807256,0.00083,66147.0,66146.0,1.74582664]
[1722385807460,0.00083,66147.0,66146.0,1.73582664]
[1722385808604,0.00083,66147.0,66146.0,1.74582664]
[1722385808807,0.00083,66147.0,66146.0,2.04818764]
[1722385809049,0.00083,66147.0,66146.0,1.73582664]
[1722385809399,0.00083,66147.0,66146.0,2.03818764]
[1722385809604,0.00083,66147.0,66146.0,2.04818764]
[1722385810088,0.00083,66147.0,66146.0,2.03818764]
[1722385810714,0.00083,66147.0,66146.0,2.04818764]
[1722385811446,0.00083,66147.0,66146.0,1.73582664]
[1722385811878,0.00083,66147.0,66146.0,2.03818764]
[1722385812079,0.00083,66147.0,66146.0,1.73582664]
[1722385812455,0.00083,66147.0,66146.0,1.74492037]
[1722385812659,0.00083,66147.0,66146.0,1.65722664]
[1722385812866,0.00083,66147.0,66146.0,1.59582664]
[1722385813066,0.0459115,66147.0,66146.0,1.57282664]
[1722385813268,0.00083,66147.0,66146.0,1.2045936]
[1722385813442,0.04590515,66147.0,66146.0,1.2045936]
[1722385813649,0.00083,66147.0,66146.0,1.1905936]
[1722385813853,0.04589776,66147.0,66146.0,1.2045936]
[1722385814072,0.04589776,66147.0,66146.0,1.1905936]
[1722385814626,0.04589776,66147.0,66146.0,1.2045936]
[1722385814851,0.04589776,66147.0,66146.0,1.1905936]
[1722385815303,0.04589776,66147.0,66146.0,1.2045936]
[1722385815524,0.04589781,66147.0,66146.0,1.2045936]
[1722385816572,0.060857,66156.0,66155.0,0.15116]
[1722385816771,0.17354421,66156.0,66155.0,0.1527142]
[1722385816969,0.17354421,66156.0,66155.0,0.45348]
[1722385817249,0.11268721,66156.0,66155.0,0.7558]
[1722385817501,0.11268721,66157.0,66156.0,0.151157]
[1722385817705,0.11268721,66157.0,66156.0,0.453472]
[1722385817908,0.11268721,66157.0,66156.0,0.13168454]
[1722385818113,0.11268721,66157.0,66156.0,0.28284154]
[1722385818650,0.11268721,66157.0,66156.0,0.13168454]
[1722385818855,0.11268721,66157.0,66156.0,0.28284154]
[1722385819259,0.11268721,66157.0,66156.0,0.13168454]
[1722385819518,0.151151,66159.0,66155.0,0.165159]
[1722385819822,0.302294,66161.0,66155.0,0.165159]
[1722385819823,0.35019682,66158.0,66156.0,0.014]
[1722385820026,0.06084382,66157.0,66156.0,0.0607489]
[1722385820363,0.06084382,66157.0,66156.0,0.0467489]
[1722385820568,0.06167382,66157.0,66156.0,0.0467489]
[1722385821011,0.06167382,66157.0,66156.0,0.0607489]
[1722385821411,0.06167382,66157.0,66156.0,0.0747489]
[1722385821638,0.06167382,66157.0,66156.0,0.5282209]
[1722385822186,0.00083,66157.0,66156.0,0.5282209]
[1722385822418,0.11354038,66157.0,66156.0,0.8305359]
[1722385822618,0.00083,66157.0,66156.0,0.8305359]
[1722385825272,0.00083,66157.0,66156.0,1.1328509]
[1722385825416,0.0910185,66157.0,66156.0,1.1328509]
[1722385826201,0.09102022,66157.0,66156.0,1.1328509]
[1722385826425,0.00083,66157.0,66156.0,1.2094509]
[1722385827135,0.09102176,66157.0,66156.0,1.2094509]
[1722385827344,0.00083,66157.0,66156.0,1.2094509]
[1722385827545,0.00083,66157.0,66156.0,1.2696509]
[1722385828084,0.00083,66157.0,66156.0,1.2556509]
[1722385828436,0.00083,66157.0,66156.0,1.2696509]
[1722385828637,0.00083,66157.0,66156.0,1.2556509]
[1722385828861,0.00083,66157.0,66156.0,1.2416509]
[1722385829076,0.00083,66157.0,66156.0,1.2556509]
[1722385829284,0.00083,66157.0,66156.0,1.3426509]
[1722385829701,0.00083,66157.0,66156.0,1.3566509]
[1722385830078,0.00083,66157.0,66156.0,1.6819659]
[1722385830079,0.06846727,66157.0,66156.0,1.6819659]
[1722385830277,0.00083,66157.0,66156.0,1.6779659]
[1722385830499,0.00083,66157.0,66156.0,1.6639659]
[1722385830673,0.00083,66157.0,66156.0,1.6919659]
[1722385830896,0.00083,66157.0,66156.0,2.29055631]
[1722385831096,0.00083,66157.0,66156.0,2.27655631]
[1722385831305,0.00083,66157.0,66156.0,2.40705631]
[1722385831502,0.00083,66157.0,66156.0,2.42105631]
[1722385831977,0.00083,66157.0,66156.0,2.40705631]
[1722385832181,0.00083,66157.0,66156.0,2.42105631]
[1722385832354,0.00083,66157.0,66156.0,2.40105631]
[1722385832591,0.00083,66157.0,66156.0,2.42105045]
[1722385832997,0.00083,66157.0,66156.0,2.42105068]
[1722385833410,0.00083,66157.0,66156.0,2.40705068]
[1722385833729,0.00083,66157.0,66156.0,2.49305068]
[1722385833940,0.00083,66157.0,66156.0,2.52105068]
[1722385834542,0.00083,66157.0,66156.0,2.52103417]
[1722385836437,0.00083,66157.0,66156.0,2.53015351]
[1722385837346,0.00083,66157.0,66156.0,2.51615351]
[1722385837544,0.00083,66157.0,66156.0,2.53015351]
[1722385838150,0.00083,66157.0,66156.0,2.51615351]
[1722385838627,0.00083,66157.0,66156.0,2.53015351]
[1722385838805,0.00083,66173.0,66172.0,1.510789]
[1722385839030,0.00083,66173.0,66172.0,1.741289]
[1722385839308,0.00083,66173.0,66172.0,1.439047]
[1722385840092,0.00083,66173.0,66172.0,1.406447]
[1722385840518,0.00083,66173.0,66172.0,1.392447]
[1722385840716,0.00083,66173.0,66172.0,1.54314132]
[1722385840896,0.00083,66173.0,66172.0,1.55714132]
[1722385841442,0.00083,66173.0,66172.0,1.52914132]
[1722385841652,0.00083,66173.0,66172.0,1.54314132]
[1722385842256,0.00083,66173.0,66172.0,1.55714132]
[1722385842450,0.00083,66173.0,66172.0,1.85938332]
[1722385842661,0.00083,66173.0,66172.0,1.84538332]
[1722385842861,0.00083,66173.0,66172.0,1.99601636]
[1722385843068,0.00083,66173.0,66172.0,2.05681636]
[1722385843731,0.00083,66173.0,66172.0,2.04281636]
[1722385843941,0.00083,66173.0,66172.0,2.05681636]
[1722385844556,0.00083,66173.0,66172.0,2.07081636]
[1722385846046,0.00083,66173.0,66172.0,2.08081636]
[1722385846367,0.00083,66173.0,66172.0,2.10081636]
[1722385848316,0.00083,66173.0,66172.0,2.08081636]
[1722385849160,0.00083,66173.0,66172.0,2.40305836]
[1722385849359,0.00083,66173.0,66172.0,2.50305836]
[1722385849775,0.00083,66173.0,66172.0,2.93973588]
[1722385849975,0.045,66177.0,66172.0,2.93973588]
[1722385849976,0.045,66177.0,66176.0,1.537208]
[1722385850203,0.045,66177.0,66176.0,1.84115104]
[1722385850401,0.045,66177.0,66176.0,2.26896208]
[1722385851008,0.00852,66186.0,66185.0,1.723023]
[1722385851224,0.00852,66186.0,66185.0,1.85445138]
[1722385851446,0.00852,66186.0,66185.0,2.15663438]
[1722385852875,0.00852,66186.0,66185.0,2.27063438]
[1722385853080,0.00852,66186.0,66185.0,2.27263438]
[1722385853285,0.00852,66186.0,66185.0,2.40303438]
[1722385853705,0.00852,66186.0,66185.0,2.41703438]
[1722385854343,0.00852,66186.0,66185.0,2.46047369]
[1722385855206,0.00852,66186.0,66185.0,2.44647369]
[1722385855480,0.00852,66186.0,66185.0,2.44734438]
[1722385855682,0.00852,66186.0,66185.0,2.55890975]
[1722385855884,0.00852,66186.0,66185.0,2.43334438]
[1722385856056,0.00852,66186.0,66185.0,2.44734438]
[1722385856294,0.00852,66186.0,66185.0,2.43334438]
[1722385856699,0.00852,66186.0,66185.0,2.52859954]
[1722385856900,0.00852,66186.0,66185.0,2.54259954]
[1722385857712,0.00852,66186.0,66185.0,2.41703438]
[1722385858741,0.00352,66186.0,66185.0,2.38903438]
[1722385858915,0.00352,66186.0,66185.0,2.40303438]